bitfinex/quotes_ETHUSD_20260111
["timestamp","ask_amount","ask_price","bid_price","bid_amount"]
[1768173200987,0.94625705,3106.6,3106.1,0.00280368]
[1768173201167,3.21886254,3106.7,3106.1,0.00280368]
[1768173201493,0.94625705,3106.6,3106.1,0.00280368]
[1768173202501,1.76112388,3106.6,3106.1,0.00280368]
[1768173202674,0.94625705,3106.5,3106.1,0.00280368]
[1768173202880,0.81486683,3106.6,3106.1,0.00280368]
[1768173203087,1.76112388,3106.6,3106.1,0.00280368]
[1768173203374,3.98347285,3106.8,3106.1,0.00280368]
[1768173203901,3.21878669,3106.8,3106.1,0.00280368]
[1768173204396,6.43757338,3106.8,3106.1,0.00280368]
[1768173205196,3.21895319,3106.6,3106.1,0.00280368]
[1768173205814,6.43790638,3106.6,3106.1,0.00280368]
[1768173205996,3.21895319,3106.6,3106.1,0.00280368]
[1768173207096,6.43771482,3106.7,3106.1,0.00280368]
[1768173207294,6.43771482,3106.7,3106.4,0.002]
[1768173207521,7.20149441,3106.7,3106.1,0.00280368]
[1768173209445,0.76377959,3106.7,3106.1,0.00280368]
[1768173209602,3.21880237,3106.8,3106.1,0.00280368]
[1768173209919,6.43762024,3106.8,3106.1,0.00280368]
[1768173212220,7.38387729,3106.8,3106.1,0.00280368]
[1768173213326,0.94625705,3106.7,3106.1,0.00280368]
[1768173213526,0.94625705,3106.7,3105.7,0.253]
[1768173213527,0.94706073,3106.5,3105.3,3.22024652]
[1768173213728,0.94706073,3106.5,3105.5,0.253]
[1768173214231,0.94706073,3106.5,3105.3,0.32210671]
[1768173214537,0.99562965,3106.3,3105.2,0.00080376]
[1768173214697,0.99562965,3106.1,3105.2,0.00080376]
[1768173215630,0.99562965,3105.9,3105.2,0.00080376]
[1768173215838,0.99562965,3105.8,3104.9,0.002]
[1768173216040,0.99562965,3105.5,3104.9,0.002]
[1768173217341,4.21582387,3105.5,3104.9,0.002]
[1768173219360,0.99562965,3105.4,3104.9,0.002]
[1768173219630,0.00080376,3105.6,3104.9,0.002]
[1768173219802,1.96244849,3105.6,3105.2,0.002]
[1768173219999,0.001,3105.2,3104.9,0.002]
[1768173220197,0.00080376,3105.6,3104.9,0.002]
[1768173223039,0.99643341,3105.6,3104.9,0.002]
[1768173224310,3.22009338,3105.5,3104.9,0.002]
[1768173225141,4.21645831,3105.6,3104.9,0.002]
[1768173232154,4.21645831,3105.6,3105.2,0.002]
[1768173232448,0.001,3105.3,3105.2,0.002]
[1768173234662,0.001,3105.3,3104.9,0.002]
[1768173235750,0.99662965,3105.3,3104.9,0.002]
[1768173238365,0.99562965,3105.2,3104.9,0.002]
[1768173238874,0.001,3105.3,3104.9,0.002]
[1768173239682,0.99662965,3105.3,3104.9,0.002]
[1768173239852,0.001,3105.3,3104.9,0.002]
[1768173241055,0.00080376,3105.6,3104.9,0.33267281]
[1768173241445,0.00080376,3105.6,3104.9,3.55332499]
[1768173241663,0.00080376,3105.6,3105.0,0.3555325]
[1768173243324,0.99643341,3105.6,3105.0,0.3555325]
[1768173243607,0.99643341,3105.6,3105.0,3.5760594]
[1768173245109,0.00080376,3105.6,3105.0,3.5760594]
[1768173245289,0.93764126,3105.8,3105.2,0.00080384]
[1768173245489,0.93764126,3105.8,3105.2,0.71561864]
[1768173245793,0.001,3105.3,3105.2,3.93602312]
[1768173246001,0.93764126,3105.8,3105.2,3.93602312]
[1768173246574,0.253,3106.0,3105.2,3.93602312]
[1768173246798,0.253,3106.0,3105.3,0.33067281]
[1768173247077,0.253,3106.0,3105.4,0.42666959]
[1768173247290,1.19064126,3106.0,3105.4,0.42666959]
[1768173247707,0.253,3106.0,3105.2,1.04629145]
[1768173247900,0.253,3106.0,3105.2,0.33347665]
[1768173248102,0.93764126,3105.9,3105.2,3.22320466]
[1768173248500,0.253,3106.0,3105.3,0.33067281]
[1768173249223,0.93764126,3105.9,3105.2,3.22320466]
[1768173249522,0.253,3106.0,3105.2,3.55387747]
[1768173249685,0.253,3106.0,3105.3,0.35538775]
[1768173250085,0.96206185,3105.9,3105.3,0.35538775]
[1768173250509,0.253,3106.0,3105.3,0.35538775]
[1768173250917,4.43463803,3106.0,3105.3,0.35538775]
[1768173251318,0.96206185,3105.9,3105.3,0.35538775]
[1768173251634,0.96206185,3105.9,3105.2,0.25580384]
[1768173252129,0.96206185,3105.9,3105.2,3.47620664]
[1768173252889,0.253,3106.0,3105.3,4.48383604]
[1768173253315,1.21506185,3106.0,3105.3,4.48383604]
[1768173253518,0.96206185,3105.9,3105.3,4.48383604]
[1768173253717,0.96206185,3105.9,3105.4,0.47396399]
[1768173256199,0.96286553,3106.5,3105.8,4.48383604]
[1768173256402,0.96286553,3106.5,3106.0,4.48383604]
[1768173256619,0.00080368,3106.5,3106.0,4.48383604]
[1768173256821,0.00080368,3106.5,3105.9,3.21967823]
[1768173257126,0.96286553,3106.5,3106.0,0.77035143]
[1768173257331,0.96286553,3106.5,3106.0,3.98991027]
[1768173257332,0.00080368,3106.5,3106.0,3.98991027]
[1768173257626,0.00080368,3106.5,3106.0,1.10102424]
[1768173257793,0.00080368,3106.5,3106.0,0.77035143]
[1768173258225,0.00080368,3106.5,3106.0,1.10102424]
[1768173258427,0.00080368,3106.5,3106.0,0.77035143]
[1768173258623,0.00080368,3106.5,3106.0,3.98991732]
[1768173259129,0.96288589,3106.9,3106.1,5.21430434]
[1768173259302,0.00082404,3106.9,3106.1,5.21430434]
[1768173259509,0.96288589,3106.9,3106.1,4.88363153]
[1768173259704,0.253,3107.1,3106.5,0.33067281]
[1768173259919,0.96206185,3107.3,3106.5,0.33067281]
[1768173259920,0.96206185,3107.3,3106.5,0.81294782]
[1768173260229,4.18091292,3107.5,3106.5,0.81294782]
[1768173260399,0.96286561,3107.5,3106.5,3.55050882]
[1768173260589,0.96286561,3107.5,3106.5,6.76956563]
[1768173260794,0.96286561,3107.5,3106.5,6.43889282]
[1768173261131,0.96206185,3107.4,3106.5,3.21983601]
[1768173261429,0.96206185,3107.4,3106.5,3.55050882]
[1768173261723,0.96206185,3107.4,3106.5,3.92210076]
[1768173261915,0.96206185,3107.4,3106.6,0.33067281]
[1768173262290,0.96206185,3107.4,3106.5,3.92210076]
[1768173262496,0.96286561,3107.5,3106.6,0.33067281]
[1768173262694,0.96206185,3107.4,3106.5,3.21983601]
[1768173262895,1.1545546,3107.3,3106.5,3.21983601]
[1768173263923,0.00080376,3107.5,3106.6,0.33067281]
[1768173264427,0.96286561,3107.5,3106.5,6.76956563]
[1768173264623,0.96286561,3107.5,3106.5,0.00082412]
[1768173264794,0.96286561,3107.5,3106.5,0.33149693]
[1768173265328,0.96286561,3107.5,3106.5,0.00082412]
[1768173265540,0.96206185,3107.4,3106.5,0.67003862]
[1768173265697,0.96206185,3107.4,3106.5,1.00071143]
[1768173266129,0.96206185,3107.4,3106.5,0.67003862]
[1768173266618,0.96206185,3107.4,3106.6,6.43790638]
[1768173266798,0.96286561,3107.5,3106.6,6.76857919]
[1768173266998,0.96286561,3107.5,3106.6,7.25840642]
[1768173267220,0.96286561,3107.5,3106.6,6.92773361]
[1768173267409,0.96286561,3107.5,3106.6,3.70878042]
[1768173268018,0.00080376,3107.5,3106.7,0.33067281]
[1768173268418,0.96286561,3107.5,3106.6,6.92773361]
[1768173268620,0.96286561,3107.5,3106.8,6.43749194]
[1768173269137,0.00080376,3107.5,3106.9,0.33067281]
[1768173269429,0.00080376,3107.5,3107.0,0.253]
[1768173270720,0.00080376,3107.5,3107.1,3.21843519]
[1768173271734,0.00080376,3107.5,3107.1,6.43687038]
[1768173271915,0.00080376,3107.5,3107.2,0.66898704]
[1768173272314,0.96206185,3107.8,3107.2,0.66898704]
[1768173272634,0.96206185,3107.8,3107.3,3.21822804]
[1768173273519,0.00080432,3108.1,3107.4,0.33067281]
[1768173273703,0.96286617,3108.1,3107.5,0.253]
[1768173273932,0.00080432,3108.1,3107.5,0.253]
[1768173274112,0.00080432,3108.1,3107.5,2.08052429]
[1768173274313,0.00080432,3108.1,3107.7,0.91934949]
[1768173274518,0.00080432,3108.1,3107.6,0.253]
[1768173274823,0.00080432,3108.1,3107.7,6.43562762]
[1768173275137,0.00080432,3108.1,3107.7,7.35497711]
[1768173275339,0.00080432,3108.1,3107.7,7.18685067]
[1768173276348,0.00080432,3108.1,3107.7,3.96903686]
[1768173276708,0.00080432,3108.1,3107.7,6.43562762]
[1768173276933,0.91781449,3108.7,3107.7,6.43643202]
[1768173277237,0.91781449,3108.7,3107.7,7.35578151]
[1768173277411,0.91781449,3108.7,3107.8,0.91934949]
[1768173277612,0.00080536,3108.7,3107.8,0.91934949]
[1768173277832,0.00080536,3108.7,3108.0,0.91934949]
[1768173278445,0.91783971,3109.7,3108.3,0.92015493]
[1768173278846,4.13364133,3109.7,3108.4,7.35352783]
[1768173279014,4.13364133,3109.7,3108.5,0.91934949]
[1768173279210,0.91783971,3109.7,3108.5,0.91934949]
[1768173279742,0.00083058,3109.7,3108.7,0.91934949]
[1768173280963,3.21658058,3109.7,3108.7,3.21672442]
[1768173281136,0.3217385,3109.5,3108.6,3.21681915]
[1768173281344,0.91700913,3109.4,3108.3,0.00080544]
[1768173282073,0.91700913,3109.4,3108.5,3.21698427]
[1768173282430,0.91700913,3109.4,3108.3,0.00080544]
[1768173282763,0.0008044,3109.6,3109.1,0.91934949]
[1768173282928,0.253,3110.5,3109.5,3.21595111]
[1768173283578,0.253,3110.5,3109.5,6.43190222]
[1768173283745,3.46792155,3110.5,3109.5,3.21595111]
[1768173284631,6.6828431,3110.5,3109.4,0.91934949]
[1768173284835,0.76005498,3110.4,3109.4,0.91934949]
[1768173285062,1.67706411,3110.4,3109.3,6.4331466]
[1768173285263,0.253,3110.5,3109.3,6.4331466]
[1768173285264,0.253,3110.5,3109.4,0.91934949]
[1768173286027,0.253,3110.5,3109.4,0.92905241]
[1768173286226,0.00080376,3110.6,3109.4,0.92905241]
[1768173286460,0.00080376,3110.6,3109.4,1.17234949]
[1768173286658,0.00080376,3110.6,3109.5,0.91934949]
[1768173287032,0.00080376,3110.6,3109.7,0.91934949]
[1768173287233,0.00080376,3110.6,3109.9,0.91934949]
[1768173288369,0.00080376,3110.6,3109.8,0.73510449]
[1768173289144,0.00080376,3110.6,3109.8,3.95071477]
[1768173289670,0.00080376,3110.6,3109.6,0.91934949]
[1768173289847,0.25380376,3110.6,3109.6,0.91934949]
[1768173290172,0.25380376,3110.6,3109.6,3.21584515]
[1768173290335,0.25380376,3110.6,3109.5,3.21595001]
[1768173290538,0.25380376,3110.6,3109.4,4.13534192]
[1768173290539,1.17081289,3110.6,3109.4,4.13534192]
[1768173290739,0.91700913,3110.5,3109.4,0.91934949]
[1768173291140,3.21502057,3110.4,3109.3,0.00083066]
[1768173291342,1.65170625,3110.3,3109.3,0.00083066]
[1768173291563,0.91700913,3110.2,3109.3,0.00083066]
[1768173292346,0.00083066,3109.7,3109.2,0.00080448]
[1768173292538,0.25383066,3109.7,3109.2,0.00080448]
[1768173292739,1.17083979,3109.7,3109.2,0.00080448]
[1768173293071,0.91781361,3109.6,3108.3,0.00080544]
[1768173293279,3.21595111,3109.5,3108.4,3.63080131]
[1768173293643,0.00080448,3109.6,3108.5,0.91934949]
[1768173294073,3.21666025,3109.6,3108.5,0.91934949]
[1768173294270,6.43251602,3109.6,3108.5,0.91934949]
[1768173294446,3.21666025,3109.6,3108.5,0.91934949]
[1768173294647,3.21666025,3109.6,3108.6,0.45501508]
[1768173295148,3.21666025,3109.6,3108.6,3.67183984]
[1768173296376,0.91800913,3109.9,3109.3,0.91934949]
[1768173296377,0.001,3109.9,3109.3,0.91934949]
[1768173296556,3.21566025,3110.6,3109.3,0.91934949]
[1768173296557,3.21566025,3110.6,3109.3,0.92018023]
[1768173296759,0.91700913,3110.5,3109.3,0.92018023]
[1768173296964,0.41326694,3110.4,3109.3,0.92018023]
[1768173297178,0.41326694,3110.4,3109.5,0.91934949]
[1768173297488,0.00080376,3110.6,3109.5,0.91934949]
[1768173297861,0.00080376,3110.6,3109.7,0.91934949]
[1768173298077,0.00080376,3110.6,3109.9,0.91934949]
[1768173298987,1.17000913,3111.2,3110.2,0.00080384]
[1768173299155,0.91700913,3111.6,3110.3,6.43024788]
[1768173299356,1.17000913,3111.5,3110.3,6.43024788]
[1768173300087,0.43838378,3111.4,3110.3,7.34959737]
[1768173300382,1.17000913,3111.5,3110.3,7.34959737]
[1768173300584,0.91700913,3111.4,3110.3,3.21512394]
[1768173300971,0.91700913,3111.4,3110.2,0.00080384]
[1768173301373,0.253,3111.5,3110.2,0.00080384]
[1768173301374,0.91700913,3111.2,3110.2,0.00080384]
[1768173301689,0.91700913,3111.0,3109.6,0.91934949]
[1768173301892,0.00080384,3110.6,3109.5,6.43190222]
[1768173302721,0.00080384,3110.6,3109.8,0.91934949]
[1768173302924,0.00080384,3110.6,3109.5,16.08945847]
[1768173302925,0.91700913,3111.7,3110.2,0.92015341]
[1768173303211,0.92671205,3111.4,3110.2,0.00080392]
[1768173303492,0.92671205,3111.0,3110.2,0.00080392]
[1768173303703,0.92671205,3110.8,3110.2,0.00080392]
[1768173303995,0.253,3111.4,3110.2,0.00080392]
[1768173304195,0.00080408,3111.8,3110.4,0.96418538]
[1768173304507,0.00080408,3111.8,3111.0,0.96418538]
[1768173304661,0.57308365,3112.2,3111.0,0.96418538]
[1768173304862,0.57308365,3112.2,3111.4,0.00080416]
[1768173305323,0.94854094,3112.7,3111.6,0.96418538]
[1768173305324,0.00080576,3112.7,3111.6,0.96418538]
[1768173305597,0.00080576,3112.7,3111.7,2.34615751]
[1768173305798,0.00083835,3112.8,3111.8,0.253]
[1768173306006,0.00083835,3112.8,3112.3,0.00080584]
[1768173306158,0.19358168,3113.1,3112.3,0.00080584]
[1768173306368,0.19358168,3113.1,3112.4,0.00083843]
[1768173306990,0.00080584,3112.7,3111.9,0.34082965]
[1768173307173,0.00083843,3112.8,3112.3,0.00080592]
[1768173308190,0.94857361,3112.8,3112.3,0.00080592]
[1768173308598,0.00080592,3112.7,3111.9,3.17969373]
[1768173308759,0.00080592,3112.7,3111.9,3.81901964]
[1768173309595,0.00080592,3112.7,3111.9,7.0324905]
[1768173309806,0.00080592,3112.7,3111.9,3.81901964]
[1768173310822,0.00080592,3112.7,3111.9,0.63932591]
[1768173311197,0.00080592,3112.7,3111.9,3.85278675]
[1768173311727,0.44558168,3113.1,3112.0,0.73193606]
[1768173311934,0.44558168,3113.1,3112.4,0.00083851]
[1768173312382,3.65784404,3113.1,3112.4,0.00083851]
[1768173313311,0.44558168,3113.1,3112.4,0.00083851]
[1768173313701,0.90612855,3113.1,3112.4,0.00083851]
[1768173314119,0.44558168,3113.1,3112.4,0.00083851]
[1768173314411,0.19358168,3113.1,3112.4,0.00083851]
[1768173314626,0.19358168,3113.1,3112.4,0.25383851]
[1768173314802,0.19358168,3113.1,3112.5,0.66774379]
[1768173315038,0.19358168,3113.1,3112.4,0.25383851]
[1768173315180,0.92370282,3113.6,3112.4,0.25383851]
[1768173315491,0.021816,3114.0,3113.3,0.00970292]
[1768173315680,0.021816,3114.0,3113.5,3.21181949]
[1768173316080,0.0008056,3114.3,3113.5,3.21181949]
[1768173316081,0.0008056,3114.3,3113.5,10.30321139]
[1768173316280,0.0008056,3114.3,3113.7,0.66774379]
[1768173316502,0.00080528,3114.9,3114.0,0.00970292]
[1768173316683,0.00080528,3114.9,3113.9,0.00080568]
[1768173316898,0.92370282,3114.7,3113.9,0.00080568]
[1768173317418,0.00080528,3114.9,3113.9,0.66774387]
[1768173317751,0.00080456,3115.8,3114.5,0.66774355]
[1768173318046,0.00080384,3116.8,3115.5,0.00083723]
[1768173318177,0.00080384,3116.8,3115.5,0.25383723]
[1768173318410,0.92370282,3116.7,3115.5,0.00083723]
[1768173318595,0.92370282,3116.5,3115.5,0.00083723]
[1768173318925,0.92450746,3115.8,3114.5,0.00080536]
[1768173319128,0.92370282,3115.7,3114.5,0.00080536]
[1768173319499,0.00080464,3115.8,3114.5,0.00080536]
[1768173319500,0.92370282,3115.5,3114.5,0.00080536]
[1768173319686,0.92370282,3115.7,3114.5,0.00080536]
[1768173320015,0.00080464,3115.8,3114.5,0.66610184]
[1768173320202,0.00080464,3115.8,3114.5,0.00080536]
[1768173320586,0.00080464,3115.8,3114.7,0.00970292]
[1768173320814,0.92370282,3116.9,3115.5,0.00083731]
[1768173321183,0.56412269,3117.0,3115.6,0.00970292]
[1768173321383,0.92450666,3116.8,3115.5,0.00083731]
[1768173321607,0.92370282,3116.7,3115.5,0.00083731]
[1768173321989,7.34075119,3116.7,3115.5,0.66892591]
[1768173322187,0.92370282,3116.7,3115.5,0.00083731]
[1768173323289,0.00080384,3116.8,3115.7,0.00970292]
[1768173323832,0.00080384,3116.8,3115.8,6.25921652]
[1768173324038,0.00080384,3116.8,3115.7,3.20952289]
[1768173324245,0.92370282,3116.7,3115.7,3.20952623]
[1768173324392,0.92370282,3116.7,3115.8,0.32095262]
[1768173324594,0.01492653,3117.0,3115.8,0.57295262]
[1768173324791,0.00080464,3117.4,3116.2,0.00970292]
[1768173324987,0.00080392,3116.8,3116.0,0.00970292]
[1768173325218,0.00080392,3116.8,3115.7,6.41783875]
[1768173325219,0.92450674,3116.8,3115.7,6.41783875]
[1768173325394,0.92450674,3116.8,3115.4,0.01050764]
[1768173325599,0.92450674,3116.8,3115.4,0.00080472]
[1768173325791,0.92370282,3116.6,3115.4,0.00080472]
[1768173325990,0.92370282,3116.4,3115.4,0.00080472]
[1768173326218,0.92370282,3115.7,3114.5,0.00080536]
[1768173326434,0.92370282,3115.6,3114.5,0.00080536]
[1768173326797,0.92370282,3115.4,3114.5,0.00080536]
[1768173327492,0.92370282,3114.8,3113.9,0.00080568]
[1768173327803,0.00080536,3114.9,3113.3,0.00080584]
[1768173327804,0.92370282,3114.2,3113.3,0.00080584]
[1768173327998,0.92370282,3114.2,3112.6,0.001]
[1768173328199,0.00080568,3114.3,3112.6,0.001]
[1768173328200,0.92370282,3113.6,3112.6,0.001]
[1768173328415,0.92370282,3113.4,3112.6,0.001]
[1768173328611,0.92370282,3113.4,3112.4,0.00083851]
[1768173328818,0.92370282,3112.6,3111.4,0.00080416]
[1768173329025,0.92370282,3112.4,3111.4,0.00080416]
[1768173329393,1.17570282,3112.3,3111.4,0.00080416]
[1768173329636,0.000806,3112.7,3111.4,0.00080416]
[1768173329864,0.000806,3112.7,3111.5,3.22357993]
[1768173330069,0.000806,3112.7,3111.6,0.32243841]
[1768173330270,0.000806,3112.7,3111.5,3.22357661]
[1768173331531,0.000806,3112.7,3111.5,6.43746058]
[1768173331727,0.000806,3112.7,3111.9,0.001]
[1768173332354,0.00083851,3112.8,3111.9,0.001]
[1768173332561,0.92370282,3113.9,3112.4,0.00083859]
[1768173332835,0.92450866,3113.7,3112.4,0.00083859]
[1768173333039,0.41361067,3113.6,3112.4,0.00083859]
[1768173333447,0.92370282,3113.5,3112.4,0.00083859]
[1768173333970,0.92370282,3113.3,3112.4,0.00083859]
[1768173335078,0.252,3113.2,3112.4,0.00083859]
[1768173336291,7.67263861,3113.2,3112.4,0.00083859]
[1768173336575,0.99637969,3113.0,3112.4,0.00083859]
[1768173337390,0.76726386,3113.1,3112.4,0.00083859]
[1768173337622,0.99637969,3113.5,3112.4,0.00083859]
[1768173337794,0.252,3113.4,3112.4,0.00083859]
[1768173338191,0.99637969,3113.2,3112.4,0.00083859]
[1768173340220,0.99637969,3113.0,3112.4,0.00083859]
[1768173340384,0.99637969,3112.8,3112.4,0.00083859]
[1768173342127,4.20902466,3112.7,3112.4,0.00083859]
[1768173342321,7.42166963,3112.7,3112.3,0.00080608]
[1768173342629,4.20902466,3112.7,3112.3,0.00080608]
[1768173343127,7.42166963,3112.7,3112.3,0.00080608]
[1768173343334,4.20902466,3112.7,3112.3,0.00080608]
[1768173343512,0.74224307,3112.6,3112.3,0.00080608]
[1768173344434,0.99637969,3112.5,3112.3,0.00080608]
[1768173344601,0.99637969,3112.5,3110.4,0.66777798]
[1768173344602,0.99637969,3111.7,3110.3,3.642271]
[1768173344929,0.99637969,3111.7,3110.3,6.112305]
[1768173344930,0.252,3111.6,3110.3,6.112305]
[1768173345117,0.252,3111.6,3110.4,0.61131089]
[1768173345320,0.252,3111.6,3110.3,7.891936]
[1768173345636,0.00080416,3111.8,3110.2,0.01050684]
[1768173345637,0.25280416,3111.8,3110.9,3.21444593]
[1768173345998,0.25280416,3111.8,3110.2,0.00080392]
[1768173345999,0.99637969,3111.7,3110.2,0.00080392]
[1768173346234,0.99637969,3111.5,3110.2,0.00080392]
[1768173346430,0.74239411,3111.4,3110.2,0.00080392]
[1768173347636,0.25280416,3111.8,3110.3,0.00970292]
[1768173347811,3.46640219,3111.8,3110.3,0.00970292]
[1768173348330,3.46639672,3111.8,3110.4,6.43004114]
[1768173348539,0.25280416,3111.8,3110.4,6.43004114]
[1768173348721,3.46639292,3111.8,3110.4,6.43004114]
[1768173349041,4.23400818,3111.8,3110.5,0.64397441]
[1768173349239,5.23038787,3111.8,3110.5,0.64397441]
[1768173350311,0.99637969,3111.7,3110.5,0.64397441]
[1768173350532,0.99637969,3111.7,3110.5,3.214821]
[1768173351419,0.99637969,3111.7,3110.5,6.42973821]
[1768173352030,0.99637969,3111.7,3110.5,3.214821]
[1768173352433,4.21016038,3111.6,3110.2,6.43125854]
[1768173352810,0.99637969,3111.6,3110.2,6.43125854]
[1768173353007,1.51943131,3111.6,3110.3,0.64409615]
[1768173353510,0.99637969,3111.5,3110.3,0.64409615]
[1768173354550,0.99637969,3111.5,3110.4,3.21502057]
[1768173354731,0.99637969,3111.5,3110.4,6.43004114]
[1768173354915,0.252,3111.7,3110.4,6.43974406]
[1768173355250,0.00080416,3111.8,3110.5,1.02989204]
[1768173355428,0.00080416,3111.8,3110.7,18.259246]
[1768173355621,0.00080416,3111.8,3110.7,14.522713]
[1768173356234,0.99637969,3112.5,3111.0,0.00970292]
[1768173356432,0.99637969,3112.5,3111.4,0.00080424]
[1768173356753,1.38140295,3112.5,3111.4,0.64372344]
[1768173357051,4.20923716,3112.5,3111.4,0.64372344]
[1768173357261,3.46553081,3112.7,3111.4,0.64372344]
[1768173357262,0.002,3111.5,3111.4,0.64372344]
[1768173357453,3.21275056,3112.6,3111.4,0.64372344]
[1768173357660,0.002,3111.8,3111.4,0.64372344]
[1768173358172,0.002,3111.8,3111.4,0.00080424]
[1768173363634,0.25280608,3112.7,3111.5,0.00970292]
[1768173363833,3.46546634,3112.7,3111.5,0.00970292]
[1768173364136,3.46546634,3112.7,3111.6,11.117364]
[1768173364137,0.00080608,3112.7,3111.6,11.117364]
[1768173364336,0.00080608,3112.7,3111.9,0.00970292]
[1768173364644,0.00080608,3112.7,3112.0,3.2133676]
[1768173364842,0.00080608,3112.7,3111.7,0.00970292]
[1768173364843,0.00080608,3112.7,3112.1,0.34750705]
[1768173365057,0.00080608,3112.7,3111.8,3.46553412]
[1768173365272,0.9989996,3112.7,3111.4,0.00080424]
[1768173366169,0.9989996,3112.7,3111.4,3.21476771]
[1768173366340,0.9989996,3112.7,3111.5,3.21383086]
[1768173366540,0.9989996,3112.7,3111.4,0.00080424]
[1768173366871,4.21168293,3112.7,3111.5,3.53532666]
[1768173367179,7.42436626,3112.7,3111.5,0.32148817]
[1768173367463,0.99819352,3112.6,3111.4,0.00080424]
[1768173369041,6.42617274,3112.7,3111.4,0.00080424]
[1768173369042,0.99819352,3112.4,3111.4,0.00080424]
[1768173371075,0.96686731,3111.7,3110.8,0.001]
[1768173371386,0.96686731,3111.6,3110.8,0.001]
[1768173372976,0.252,3111.7,3110.8,0.001]
[1768173373677,0.00080424,3111.8,3110.8,0.001]
[1768173374552,0.00080424,3111.8,3110.8,0.253]
[1768173374887,0.00080424,3111.8,3110.8,0.92277798]
[1768173375272,0.00080424,3111.8,3110.9,3.21450384]
[1768173375449,0.00080424,3111.8,3111.0,0.41372818]
[1768173377177,0.00080424,3111.8,3110.8,0.001]
[1768173377380,0.96767155,3111.8,3110.8,0.001]
[1768173380581,0.96686731,3111.7,3110.8,0.001]
[1768173381798,0.96686731,3111.6,3110.8,0.001]
[1768173382805,0.00080424,3111.8,3110.9,29.02337196]
[1768173383097,0.00083859,3112.8,3111.4,0.00080432]
[1768173383098,3.21340351,3112.8,3111.4,0.00080432]
[1768173383308,0.00083859,3112.8,3111.4,0.25280432]
[1768173383510,0.00083859,3112.8,3111.5,0.00970292]
[1768173383654,0.00083859,3112.8,3111.6,35.96185507]
[1768173383858,0.00083859,3112.8,3111.9,0.00970292]
[1768173384192,0.00083859,3112.8,3112.3,0.00080616]
[1768173384689,0.002,3113.1,3112.3,0.00080616]
[1768173384991,0.00080584,3113.7,3112.5,0.00970292]
[1768173385287,0.00080584,3113.7,3112.6,0.97495204]
[1768173385491,0.00080536,3114.9,3113.3,0.00080592]
[1768173385655,0.00080536,3114.9,3113.5,6.42363898]
[1768173385987,0.00080536,3114.9,3113.9,0.00080576]
[1768173386403,0.00080536,3114.9,3114.2,0.00970292]
[1768173386568,0.00970292,3116.6,3114.2,0.00970292]
[1768173386569,0.252,3116.1,3115.0,0.79354394]
[1768173386774,0.96686731,3115.7,3115.0,0.79354394]
[1768173387095,0.96686731,3115.7,3114.5,0.00080544]
[1768173387321,0.96686731,3115.5,3114.5,0.00080544]
[1768173387467,0.73865714,3115.6,3113.4,0.252]
[1768173387468,0.96767275,3114.9,3113.4,0.252]
[1768173387670,3.210479,3114.8,3113.4,0.252]
[1768173388071,0.96686731,3114.7,3113.4,3.46390314]
[1768173388380,6.420958,3114.8,3113.4,0.252]
[1768173388586,0.64217634,3114.7,3113.4,3.46391725]
[1768173388888,0.64217634,3114.7,3113.3,0.00080592]
[1768173389068,0.64217634,3114.7,3113.3,0.25280592]
[1768173389271,0.96686731,3114.6,3113.3,0.00080592]
[1768173389467,0.96767307,3114.3,3113.3,0.00080592]
[1768173389899,6.4221951,3114.2,3113.3,0.00080592]
[1768173390107,0.73898682,3114.1,3113.3,0.00080592]
[1768173391394,3.21183529,3114.3,3113.3,0.00080592]
[1768173391589,3.21180591,3114.3,3113.3,0.00080592]
[1768173391889,0.00080576,3114.3,3113.3,0.00080592]
[1768173393503,0.00080576,3114.3,3113.3,0.97575796]
[1768173393723,0.00080576,3114.3,3113.4,0.00970292]
[1768173393918,0.00080576,3114.3,3113.5,3.21181949]
[1768173394217,0.00080576,3114.3,3113.6,0.64334035]
[1768173394690,0.00080576,3114.3,3113.4,3.46390016]
[1768173394891,0.00080576,3114.3,3113.4,0.252]
[1768173395194,0.00080576,3114.3,3113.4,3.46389311]
[1768173395594,0.00080576,3114.3,3113.4,0.252]
[1768173395790,0.00080576,3114.3,3113.4,3.46389266]
[1768173395986,0.00080576,3114.3,3113.5,0.44396506]
[1768173396193,0.002,3114.0,3113.4,3.46391388]
[1768173396392,0.002,3114.0,3113.4,0.252]
[1768173396600,0.002,3114.0,3113.4,3.4639199]
[1768173396803,0.002,3114.0,3113.5,3.21181383]
[1768173397095,0.002,3114.0,3113.4,0.252]
[1768173397289,0.002,3114.0,3113.3,0.00080592]
[1768173398394,0.94636908,3114.0,3113.3,0.00080592]
[1768173400121,0.002,3114.0,3113.3,0.00080592]
[1768173401222,0.00280576,3114.3,3113.3,0.00080592]
[1768173402359,0.94717484,3114.3,3113.3,3.21283174]
[1768173402501,0.94717484,3114.3,3113.4,0.66769562]
[1768173403146,0.00280576,3114.3,3113.4,0.66769562]
[1768173403944,0.00280576,3114.3,3113.6,0.93381179]
[1768173404165,0.00080544,3114.9,3113.9,6.42361966]
[1768173404441,0.00080544,3114.9,3113.9,3.21221275]
[1768173404598,0.00080544,3114.9,3114.0,0.57419157]
[1768173405242,0.00080544,3114.9,3114.0,0.32219157]
[1768173405482,0.00080544,3114.9,3113.9,0.25280584]
[1768173405781,0.94517452,3114.9,3113.9,0.25280584]
[1768173406181,4.15559537,3114.9,3113.9,0.00080584]
[1768173406373,0.00080544,3114.9,3113.9,0.00080584]
[1768173406543,0.00080544,3114.9,3114.0,0.252]
[1768173407944,0.00080544,3114.9,3114.1,0.252]
[1768173408160,0.00080544,3114.9,3113.9,0.25280584]
[1768173408343,0.00080544,3114.9,3114.0,3.21130378]
[1768173408542,0.00080544,3114.9,3114.1,0.34641096]
[1768173408751,0.00080544,3114.9,3113.9,0.25280584]
[1768173409372,0.00080544,3114.9,3113.9,3.46421275]
[1768173409568,0.002,3114.6,3113.9,3.46421275]
[1768173409769,0.002,3114.6,3113.9,9.88702657]
[1768173409980,0.002,3114.6,3114.0,0.92410887]
[1768173410138,0.002,3114.6,3114.1,1.08208384]
[1768173410475,0.002,3114.6,3114.2,3.21109755]
[1768173410647,0.00280544,3114.9,3114.2,6.4221951]
[1768173411048,0.00280544,3114.9,3114.2,7.34630397]
[1768173411470,0.00280544,3114.9,3114.2,10.55740152]
[1768173411676,0.00280544,3114.9,3114.2,7.34630397]
[1768173411873,0.00280544,3114.9,3114.2,6.4221951]
[1768173412272,0.00280544,3114.9,3114.3,0.6431898]
[1768173412496,0.00280544,3114.9,3114.4,3.21089134]
[1768173412702,0.00280544,3114.9,3114.5,0.252]
[1768173413000,0.00080472,3115.8,3114.5,4.09250844]
[1768173413213,0.00080472,3115.8,3114.6,5.20251825]
[1768173413371,0.00080472,3115.8,3114.6,1.37251825]
[1768173413570,0.00080472,3115.8,3114.7,0.00970292]